fUST/lending_fUST_20250812
["ID","MTS","AMOUNT","RATE_DAILY","PERIOD"]
[378665968,1754950257462,-460.0,0.00020273,2]
[378665969,1754950257472,-154.13560178,0.00020273,2]
[378665970,1754950257481,-1868.74,0.00020273,2]
[378665971,1754950257494,-200.10021766,0.00020273,2]
[378665972,1754950257503,-500.0,0.00020273,2]
[378665973,1754950257513,-586.29,0.00020273,2]
[378665974,1754950257522,-1451.28,0.00020273,2]
[378665975,1754950257531,-2020.97,0.00020273,2]
[378665976,1754950257540,-460.0,0.00020273,2]
[378665977,1754950257550,-566.69,0.00020273,2]
[378665978,1754950257559,-11449.43,0.00020273,2]
[378665979,1754950257568,-510.8,0.00020273,2]
[378665980,1754950257578,-151.0,0.00020273,2]
[378665981,1754950257587,-151.0,0.00020273,2]
[378665982,1754950257596,-460.0,0.00020273,2]
[378665983,1754950257606,-787.05,0.00020273,2]
[378665984,1754950257615,-460.0,0.00020273,2]
[378665985,1754950257626,-4437.45,0.00020273,2]
[378665986,1754950257637,-460.0,0.00020273,2]
[378665987,1754950257646,-1035.9,0.00020273,2]
[378665988,1754950257655,-1174.14,0.00020273,2]
[378665989,1754950257665,-460.0,0.00020273,2]
[378665990,1754950257675,-460.0,0.00020273,2]
[378665991,1754950257683,-460.0,0.00020273,2]
[378665992,1754950257693,-460.0,0.00020273,2]
[378665993,1754950257702,-460.0,0.00020273,2]
[378665994,1754950257713,-1021.11,0.00020273,2]
[378665995,1754950257723,-460.0,0.00020273,2]
[378665996,1754950257733,-589.22,0.00020273,2]
[378665997,1754950257742,-856.03,0.00020273,2]
[378665998,1754950257751,-1867.34,0.00020273,2]
[378665999,1754950257760,-460.0,0.00020273,2]
[378666000,1754950257769,-654.82,0.00020273,2]
[378666001,1754950257778,-460.0,0.00020273,2]
[378666002,1754950257787,-460.0,0.00020273,2]
[378666003,1754950257796,-513.21,0.00020273,2]
[378666004,1754950257807,-671.41,0.00020273,2]
[378666005,1754950257817,-2634.21,0.00020273,2]
[378666006,1754950257827,-4290.54,0.00020273,2]
[378666007,1754950257838,-460.0,0.00020273,2]
[378666008,1754950257848,-801.27,0.00020273,2]
[378666009,1754950257858,-1187.32,0.00020273,2]
[378666010,1754950257868,-460.0,0.00020273,2]
[378666011,1754950257878,-307.377732,0.00020273,2]
[378666012,1754950257887,-611.42,0.00020273,2]
[378666013,1754950257897,-307.377732,0.00020273,2]
[378666014,1754950257907,-3505.5,0.00020273,2]
[378666015,1754950257916,-460.0,0.00020273,2]
[378666016,1754950257927,-711.17,0.00020273,2]
[378666017,1754950257936,-1072.74,0.00020273,2]
[378666018,1754950257945,-307.377732,0.00020273,2]
[378666019,1754950257955,-307.377732,0.00020273,2]
[378666020,1754950257964,-505.93,0.00020273,2]
[378666021,1754950257973,-1277.09,0.00020273,2]
[378666022,1754950257982,-2343.71,0.00020273,2]
[378666023,1754950257992,-534.51,0.00020273,2]
[378666024,1754950258001,-505.51,0.00020273,2]
[378666025,1754950258010,-2497.07,0.00020273,2]
[378666026,1754950258019,-782.72,0.00020273,2]
[378666027,1754950258029,-460.0,0.00020273,2]
[378666028,1754950258038,-551.82,0.00020273,2]
[378666029,1754950258047,-662.59,0.00020273,2]
[378666030,1754950258056,-460.0,0.00020273,2]
[378666031,1754950258065,-460.0,0.00020273,2]
[378666032,1754950258075,-613.29,0.00020273,2]
[378666033,1754950258084,-460.0,0.00020273,2]
[378666034,1754950258093,-1801.27,0.00020273,2]
[378666035,1754950258102,-460.0,0.00020273,2]
[378666036,1754950258112,-561.59,0.00020273,2]
[378666037,1754950258123,-460.0,0.00020273,2]
[378666038,1754950258135,-1580.92,0.00020273,2]
[378666039,1754950258145,-1068.46,0.00020273,2]
[378666040,1754950258154,-460.0,0.00020273,2]
[378666041,1754950258164,-779.86,0.00020273,2]
[378666042,1754950258173,-394.87430751,0.00020273,2]
[378666043,1754950258183,-460.0,0.00020273,2]
[378666044,1754950258194,-535.54,0.00020273,2]
[378666045,1754950258204,-21365.65503459,0.000203,5]
[378666046,1754950258422,-29813.25029031,0.000203,5]
[378666047,1754950258704,-430.0,0.00019178,2]
[378666048,1754950261052,-0.00387153,0.00019178,2]
[378666050,1754950261828,-29.99612847,0.00019178,2]
[378666051,1754950261838,-460.0,0.00019178,2]
[378666052,1754950261847,-460.0,0.00019178,2]
[378666053,1754950261858,-460.0,0.00019178,2]
[378666054,1754950261867,-237.74197553,0.00019178,2]
[378666055,1754950261880,-222.25802447,0.00019178,2]
[378666056,1754950261890,-460.0,0.00019178,2]
[378666057,1754950261899,-460.0,0.00019452,2]
[378666058,1754950261910,-460.0,0.00019452,2]
[378666059,1754950261920,-460.0,0.00019452,2]
[378666060,1754950261931,-460.0,0.00019452,2]
[378666061,1754950261941,-3762.69,0.00019726,2]
[378666062,1754950261951,-460.0,0.00019726,2]
[378666063,1754950261961,-278.19,0.00019726,2]
[378666064,1754950261971,-460.0,0.00019726,2]
[378666065,1754950261981,-3762.69,0.0002,2]
[378666066,1754950261991,-460.0,0.0002,2]
[378666067,1754950262002,-460.0,0.0002,2]
[378666068,1754950262012,-3762.69,0.00020273,2]
[378666069,1754950262023,-460.0,0.00020273,2]
[378666070,1754950262034,-297.79,0.00020273,2]
[378666071,1754950262044,-18821.0946751,0.000203,5]
[378666072,1754950262055,-151.0,0.000203,3]
[378666073,1754950262066,-151.0,0.000203,2]
[378666074,1754950262076,-151.0,0.000203,2]
[378666075,1754950262088,-253.711868,0.000203,2]
[378666076,1754950262098,-253.711868,0.000203,2]
[378666077,1754950262110,-954.960379,0.000203,2]
[378666078,1754950262120,-241.448217,0.000203,2]
[378666079,1754950262130,-241.448217,0.000203,2]
[378666080,1754950262140,-1763.437769,0.000203,2]
[378666081,1754950262149,-1763.437769,0.000203,2]
[378666082,1754950262159,-151.0,0.000203,2]
[378666083,1754950262169,-151.0,0.000203,2]
[378666084,1754950262179,-1836.03,0.000203,2]
[378666085,1754950262188,-151.0,0.000203,2]
[378666086,1754950262198,-307.377732,0.000203,2]
[378666087,1754950262207,-307.377725,0.000203,2]
[378666088,1754950262217,-447.7,0.00020316,2]
[378666089,1754950262227,-664.02290298,0.00020321,2]
[378666090,1754950262236,-250.0,0.00020321,2]
[378666091,1754950262246,-453.84394465,0.00020321,2]
[378666092,1754950262256,-1000.0,0.00020321,2]
[378666093,1754950262267,-1000.0,0.00020321,2]
[378666094,1754950262276,-570.05000165,0.00020321,2]
[378666095,1754950262286,-1000.0,0.00020321,2]
[378666096,1754950262296,-168.0,0.00020396,2]
[378666097,1754950262305,-151.0,0.000204,3]
[378666098,1754950262315,-160.0,0.00020443,2]
[378666099,1754950262325,-1000.0,0.00020488,2]
[378666100,1754950262334,-250.0,0.000205,2]
[378666101,1754950262344,-250.0,0.000205,2]
[378666102,1754950262354,-250.0,0.000205,2]
[378666103,1754950262363,-250.0,0.000205,2]
[378666104,1754950262373,-389.3,0.000205,2]
[378666105,1754950262383,-151.0,0.000205,4]
[378666106,1754950262393,-645.0,0.000205,2]
[378666107,1754950262402,-1000.0,0.00020521,2]
[378666108,1754950262412,-1000.0,0.00020521,2]
[378666109,1754950262422,-500.0,0.00020521,2]
[378666110,1754950262431,-500.0,0.00020521,2]
[378666111,1754950262441,-1000.0,0.00020521,2]
[378666112,1754950262450,-206.31777,0.00020521,2]
[378666113,1754950262467,-197.069922,0.00020521,2]
[378666114,1754950262482,-197.069922,0.00020521,2]
[378666115,1754950262492,-500.0,0.00020521,2]
[378666116,1754950262502,-500.0,0.00020525,2]
[378666117,1754950262512,-2200.0,0.00020525,2]
[378666118,1754950262523,-200.0,0.00020546,2]
[378666119,1754950262532,-201.64324224,0.00020546,2]
[378666120,1754950262543,-151.0,0.00020547,2]
[378666121,1754950262553,-500.0,0.00020547,2]
[378666122,1754950262563,-151.0,0.00020547,2]
[378666123,1754950262574,-152.10186776,0.00020547,2]
[378666124,1754950262584,-151.0,0.00020547,2]
[378666125,1754950262594,-151.0,0.00020547,2]
[378666126,1754950262604,-151.0,0.00020547,2]
[378666127,1754950262614,-151.0,0.00020547,2]
[378666128,1754950262624,-500.0,0.00020547,2]
[378666129,1754950262639,-500.0,0.00020547,2]
[378666130,1754950262650,-151.0,0.00020547,2]
[378666131,1754950262660,-151.0,0.00020547,2]
[378666132,1754950262670,-151.0,0.00020547,2]
[378666133,1754950262681,-151.0,0.00020547,2]
[378666134,1754950262691,-151.0,0.00020547,2]
[378666135,1754950262700,-151.0,0.00020547,2]
[378666136,1754950262710,-500.0,0.00020547,2]
[378666137,1754950262721,-500.0,0.00020547,2]
[378666138,1754950262730,-151.0,0.00020547,2]
[378666139,1754950262740,-500.0,0.00020547,2]
[378666140,1754950262750,-151.0,0.00020547,2]
[378666141,1754950262759,-500.0,0.00020547,2]
[378666142,1754950262769,-500.0,0.00020547,2]
[378666143,1754950262779,-500.0,0.00020547,2]
[378666144,1754950262788,-247.217336,0.00020547,2]
[378666145,1754950262798,-460.0,0.00020547,2]
[378666146,1754950262808,-151.0,0.00020547,2]
[378666147,1754950262818,-151.0,0.00020547,2]
[378666148,1754950262828,-460.0,0.00020547,2]
[378666149,1754950262837,-605.38097869,0.00020547,2]
[378666150,1754950262847,-460.0,0.00020547,2]
[378666151,1754950262856,-460.0,0.00020547,2]
[378666152,1754950262866,-257.84797569,0.00020547,2]
[378666153,1754950262876,-460.0,0.00020547,2]
[378666154,1754950262885,-460.0,0.00020547,2]
[378666155,1754950262896,-480.72,0.00020547,2]
[378666156,1754950262905,-460.0,0.00020547,2]
[378666157,1754950262914,-460.0,0.00020547,2]
[378666158,1754950262924,-2434.57,0.00020547,2]
[378666159,1754950262933,-460.0,0.00020547,2]
[378666160,1754950262943,-460.0,0.00020547,2]
[378666161,1754950262953,-460.0,0.00020547,2]
[378666162,1754950262962,-253.711868,0.00020547,2]
[378666163,1754950262972,-253.711868,0.00020547,2]
[378666164,1754950262981,-460.0,0.00020547,2]
[378666165,1754950262991,-460.0,0.00020547,2]
[378666166,1754950263001,-460.0,0.00020547,2]
[378666167,1754950263011,-1160.16,0.00020547,2]
[378666168,1754950263020,-460.0,0.00020547,2]
[378666169,1754950263030,-877.59,0.00020547,2]
[378666170,1754950263040,-460.0,0.00020547,2]
[378666171,1754950263050,-460.0,0.00020547,2]
[378666172,1754950263060,-524.33,0.00020547,2]
[378666173,1754950263070,-460.0,0.00020547,2]
[378666174,1754950263080,-679.67,0.00020547,2]
[378666175,1754950263089,-460.0,0.00020547,2]
[378666176,1754950263100,-460.0,0.00020547,2]
[378666177,1754950263110,-460.0,0.00020547,2]
[378666178,1754950263121,-594.28,0.00020547,2]
[378666179,1754950263135,-710.52181827,0.00020547,2]
[378666180,1754950263151,-1624.11818173,0.00020547,2]
[378666181,1754950263161,-442.19355687,0.00020547,2]
[378666182,1754950263172,-460.0,0.00020547,2]
[378666183,1754950263182,-746.73,0.00020547,2]
[378666184,1754950263192,-460.0,0.00020547,2]
[378666185,1754950263296,-500.31666202,0.00020547,2]
[378666186,1754950263306,-460.0,0.00020547,2]
[378666187,1754950263316,-460.0,0.00020547,2]
[378666188,1754950263326,-460.0,0.00020547,2]
[378666189,1754950263336,-460.0,0.00020547,2]
[378666190,1754950263346,-468.8,0.00020547,2]
[378666191,1754950263356,-413.10768994,0.00020547,2]
[378666192,1754950263366,-460.0,0.00020547,2]
[378666193,1754950263379,-460.0,0.00020547,2]
[378666194,1754950263390,-460.0,0.00020547,2]
[378666195,1754950263399,-551.71,0.00020547,2]
[378666196,1754950263409,-469.63,0.00020547,2]
[378666197,1754950263419,-460.0,0.00020547,2]
[378666198,1754950263430,-897.91,0.00020547,2]
[378666199,1754950263440,-1076.44,0.00020547,2]
[378666200,1754950263450,-460.0,0.00020547,2]
[378666201,1754950263460,-460.0,0.00020547,2]
[378666202,1754950263470,-622.52,0.00020547,2]
[378666203,1754950263479,-460.0,0.00020547,2]
[378666204,1754950263489,-912.26,0.00020547,2]
[378666205,1754950263498,-460.0,0.00020547,2]
[378666206,1754950263509,-460.0,0.00020547,2]
[378666207,1754950263519,-460.0,0.00020547,2]
[378666208,1754950263529,-460.0,0.00020547,2]
[378666209,1754950263539,-954.960379,0.00020547,2]
[378666210,1754950263549,-598.00155454,0.00020547,2]
[378666211,1754950263559,-538.8,0.00020547,2]
[378666212,1754950263568,-241.448217,0.00020547,2]
[378666213,1754950263578,-4600.42,0.00020547,2]
[378666214,1754950263588,-241.448217,0.00020547,2]
[378666215,1754950263597,-460.0,0.00020547,2]
[378666216,1754950263608,-460.0,0.00020547,2]
[378666217,1754950263617,-460.0,0.00020547,2]
[378666218,1754950263629,-460.0,0.00020547,2]
[378666219,1754950263644,-460.0,0.00020547,2]
[378666220,1754950263654,-1262.73,0.00020547,2]
[378666221,1754950263663,-563.99,0.00020547,2]
[378666222,1754950263673,-1763.437769,0.00020547,2]
[378666223,1754950263683,-1763.437769,0.00020547,2]
[378666224,1754950263692,-561.52,0.00020547,2]
[378666225,1754950263701,-460.0,0.00020547,2]
[378666226,1754950263711,-460.0,0.00020547,2]
[378666227,1754950263722,-460.0,0.00020547,2]
[378666228,1754950263731,-460.0,0.00020547,2]
[378666229,1754950263740,-761.03,0.00020547,2]
[378666230,1754950263750,-460.0,0.00020547,2]
[378666231,1754950263759,-634.09,0.00020547,2]
[378666232,1754950263769,-460.0,0.00020547,2]
[378666233,1754950263779,-460.0,0.00020547,2]
[378666234,1754950263788,-460.0,0.00020547,2]
[378666235,1754950263797,-826.21,0.00020547,2]
[378666236,1754950263808,-197.069922,0.00020547,2]
[378666237,1754950263818,-197.069928,0.00020547,2]
[378666238,1754950263827,-1045.81,0.00020547,2]
[378666239,1754950263837,-943.82,0.00020547,2]
[378666240,1754950263846,-3701.3,0.00020547,2]
[378666241,1754950263856,-460.0,0.00020547,2]
[378666242,1754950263866,-643.86,0.00020547,2]
[378666243,1754950263875,-2906.3,0.00020547,2]
[378666244,1754950263885,-460.0,0.00020547,2]
[378666245,1754950263894,-550.62,0.00020547,2]
[378666246,1754950263903,-460.0,0.00020547,2]
[378666247,1754950263913,-460.0,0.00020547,2]
[378666248,1754950263923,-460.0,0.00020547,2]
[378666249,1754950263932,-151.0,0.00020547,2]
[378666250,1754950263942,-460.0,0.00020547,2]
[378666251,1754950263952,-448.79252887,0.00020547,2]
[378666252,1754950263961,-460.0,0.00020547,2]
[378666253,1754950263971,-941.15,0.00020547,2]
[378666254,1754950263980,-460.0,0.00020547,2]
[378666255,1754950263989,-1048.49,0.00020547,2]
[378666256,1754950263999,-533.13,0.00020547,2]
[378666257,1754950264008,-2881.89,0.00020547,2]
[378666258,1754950264017,-806.46,0.00020547,2]
[378666259,1754950264027,-393.46588472,0.00020547,2]
[378666260,1754950264036,-460.0,0.00020547,2]
[378666261,1754950264045,-525.82,0.00020547,2]
[378666262,1754950264055,-487.87,0.00020547,2]
[378666263,1754950264064,-460.0,0.00020547,2]
[378666264,1754950264073,-460.0,0.00020547,2]
[378666265,1754950264082,-2299.09,0.00020547,2]
[378666266,1754950264091,-151.0,0.00020547,2]
[378666267,1754950264100,-460.0,0.00020547,2]
[378666268,1754950264108,-460.0,0.00020547,2]
[378666269,1754950264118,-591.88,0.00020547,2]
[378666270,1754950264130,-460.0,0.00020547,2]
[378666271,1754950264139,-460.0,0.00020547,2]
[378666272,1754950264149,-941.59,0.00020547,2]
[378666273,1754950264158,-460.0,0.00020547,2]
[378666274,1754950264167,-1450.42,0.00020547,2]
[378666275,1754950264176,-890.16,0.00020547,2]
[378666276,1754950264186,-466.25,0.00020547,2]
[378666277,1754950264195,-1160.53,0.00020547,2]
[378666278,1754950264205,-1643.29,0.00020547,2]
[378666279,1754950264215,-1075.94,0.00020547,2]
[378666280,1754950264225,-460.0,0.00020547,2]
[378666281,1754950264234,-460.0,0.00020547,2]
[378666282,1754950264243,-555.21,0.00020547,2]
[378666283,1754950264254,-460.0,0.00020547,2]
[378666284,1754950264265,-1868.74,0.00020547,2]
[378666285,1754950264275,-586.29,0.00020547,2]
[378666286,1754950264284,-1451.28,0.00020547,2]
[378666287,1754950264293,-2020.97,0.00020547,2]
[378666288,1754950264302,-460.0,0.00020547,2]
[378666289,1754950264312,-566.69,0.00020547,2]
[378666290,1754950264321,-11449.43,0.00020547,2]
[378666291,1754950264330,-510.8,0.00020547,2]
[378666292,1754950264339,-151.0,0.00020547,2]
[378666293,1754950264349,-460.0,0.00020547,2]
[378666294,1754950264359,-787.05,0.00020547,2]
[378666295,1754950264368,-460.0,0.00020547,2]
[378666296,1754950264377,-4437.45,0.00020547,2]
[378666297,1754950264387,-460.0,0.00020547,2]
[378666298,1754950264397,-1035.9,0.00020547,2]
[378666299,1754950264407,-1174.14,0.00020547,2]
[378666300,1754950264416,-460.0,0.00020547,2]
[378666301,1754950264430,-460.0,0.00020547,2]
[378666302,1754950264441,-460.0,0.00020547,2]
[378666303,1754950264450,-460.0,0.00020547,2]
[378666304,1754950264459,-1021.11,0.00020547,2]
[378666305,1754950264468,-460.0,0.00020547,2]
[378666306,1754950264478,-856.03,0.00020547,2]
[378666307,1754950264487,-589.22,0.00020547,2]
[378666308,1754950264496,-1867.34,0.00020547,2]
[378666309,1754950264506,-460.0,0.00020547,2]
[378666310,1754950264515,-654.82,0.00020547,2]
[378666311,1754950264524,-460.0,0.00020547,2]
[378666312,1754950264534,-484.57753076,0.00020547,2]
[378666313,1754950264543,-513.21,0.00020547,2]
[378666314,1754950264552,-671.41,0.00020547,2]
[378666315,1754950264561,-2634.21,0.00020547,2]
[378666316,1754950264570,-4290.54,0.00020547,2]
[378666317,1754950264580,-460.0,0.00020547,2]
[378666318,1754950264589,-801.27,0.00020547,2]
[378666319,1754950264598,-1187.32,0.00020547,2]
[378666320,1754950264608,-460.0,0.00020547,2]
[378666321,1754950264617,-611.42,0.00020547,2]
[378666322,1754950264626,-3505.5,0.00020547,2]
[378666323,1754950264639,-460.0,0.00020547,2]
[378666324,1754950264647,-711.17,0.00020547,2]
[378666325,1754950264656,-1072.74,0.00020547,2]
[378666326,1754950264666,-505.93,0.00020547,2]
[378666327,1754950264676,-1277.09,0.00020547,2]
[378666328,1754950264685,-2343.71,0.00020547,2]
[378666329,1754950264694,-534.51,0.00020547,2]
[378666330,1754950264703,-505.51,0.00020547,2]
[378666331,1754950264714,-2497.07,0.00020547,2]
[378666332,1754950264723,-782.72,0.00020547,2]
[378666333,1754950264732,-460.0,0.00020547,2]
[378666334,1754950264742,-551.82,0.00020547,2]
[378666335,1754950264751,-662.59,0.00020547,2]
[378666336,1754950264760,-460.0,0.00020547,2]
[378666337,1754950264769,-460.0,0.00020547,2]
[378666338,1754950264778,-613.29,0.00020547,2]
[378666339,1754950264787,-460.0,0.00020547,2]
[378666340,1754950264797,-480.0,0.00020547,2]
[378666341,1754950264806,-561.59,0.00020547,2]
[378666342,1754950264816,-460.0,0.00020547,2]
[378666343,1754950264825,-1580.92,0.00020547,2]
[378666344,1754950264834,-1068.46,0.00020547,2]
[378666345,1754950264843,-460.0,0.00020547,2]
[378666346,1754950264852,-779.86,0.00020547,2]
[378666347,1754950264862,-535.54,0.00020547,2]
[378666348,1754950264871,-460.0,0.00020547,2]
[378666349,1754950264882,-3762.69,0.00020547,2]
[378666350,1754950264891,-183.94114085,0.00020548,3]
[378666351,1754950264901,-1500.0,0.00020568,2]
[378666352,1754950264910,-1500.0,0.00020568,2]
[378666353,1754950264919,-1500.0,0.00020568,2]
[378666354,1754950264928,-1500.0,0.00020568,2]
[378666355,1754950264938,-165.11377929,0.00020568,2]
[378666356,1754950264947,-1500.0,0.00020568,2]
[378666357,1754950264956,-1500.0,0.00020568,2]
[378666358,1754950264965,-1500.0,0.00020568,2]
[378666359,1754950264974,-1500.0,0.00020568,2]
[378666360,1754950264983,-1002.77267564,0.00020568,2]
[378666361,1754950264993,-500.0,0.00020573,2]
[378666362,1754950265002,-253.711868,0.00020573,2]
[378666363,1754950265011,-253.711876,0.00020573,2]
[378666364,1754950265020,-954.960381,0.00020573,2]
[378666365,1754950265029,-241.448217,0.00020573,2]
[378666366,1754950265039,-241.448225,0.00020573,2]
[378666367,1754950265048,-1000.0,0.00020586,2]
[378666368,1754950265057,-915.68597081,0.00020666,2]
[378666369,1754950265067,-1763.437769,0.00020688,2]
[378666370,1754950265076,-1763.437763,0.00020688,2]
[378666371,1754950265085,-3000.0,0.00020688,2]
[378666372,1754950265095,-454.21824,0.0002072,3]
[378666373,1754950265107,-8394.60630897,0.00020721,2]
[378666374,1754950265117,-996.07032191,0.00020721,2]
[378666375,1754950265129,-500.0,0.00020722,2]
[378666376,1754950265138,-151.0,0.00020753,2]
[378666377,1754950265147,-179.87408814,0.00020753,2]
[378666378,1754950265156,-500.0,0.00020764,2]
[378666379,1754950265165,-420.0,0.00020791,2]
[378666380,1754950265174,-420.0,0.00020791,2]
[378666381,1754950265183,-420.0,0.00020791,2]
[378666382,1754950265192,-4003.0,0.00020796,2]
[378666383,1754950265202,-250.0,0.000208,2]
[378666384,1754950265211,-250.0,0.000208,2]
[378666385,1754950265221,-500.0,0.00020802,2]
[378666386,1754950265230,-1300.0,0.00020808,2]
[378666387,1754950265240,-2000.0,0.00020816,2]
[378666388,1754950265250,-1062.49809899,0.00020816,2]
[378666389,1754950265259,-2000.0,0.00020816,2]
[378666390,1754950265268,-151.0,0.00020821,2]
[378666391,1754950265278,-500.0,0.00020821,2]
[378666392,1754950265287,-151.0,0.00020821,2]
[378666393,1754950265296,-151.0,0.00020821,2]
[378666394,1754950265305,-151.0,0.00020821,2]
[378666395,1754950265314,-151.0,0.00020821,2]
[378666396,1754950265323,-165.20798353,0.00020821,2]
[378666397,1754950265332,-500.0,0.00020821,2]
[378666398,1754950265341,-151.0,0.00020821,2]
[378666399,1754950265352,-281.31197946,0.00020821,2]
[378666400,1754950265371,-151.0,0.00020821,2]
[378666401,1754950265383,-151.0,0.00020821,2]
[378666402,1754950265392,-151.0,0.00020821,2]
[378666403,1754950265401,-500.0,0.00020821,2]
[378666404,1754950265411,-445.08646877,0.00020821,2]
[378666405,1754950265420,-151.0,0.00020821,2]
[378666406,1754950265429,-355.71729665,0.00020821,2]
[378666407,1754950265438,-151.0,0.00020821,2]
[378666408,1754950265447,-500.0,0.00020821,2]
[378666409,1754950265457,-500.0,0.00020821,2]
[378666410,1754950265466,-189.02863173,0.00020821,2]
[378666411,1754950265476,-460.0,0.00020821,2]
[378666412,1754950265485,-151.0,0.00020821,2]
[378666413,1754950265494,-151.0,0.00020821,2]
[378666414,1754950265503,-460.0,0.00020821,2]
[378666415,1754950265513,-151.0,0.00020821,2]
[378666416,1754950265522,-460.0,0.00020821,2]
[378666417,1754950265531,-460.0,0.00020821,2]
[378666418,1754950265540,-277.41371392,0.00020821,2]
[378666419,1754950265550,-460.0,0.00020821,2]
[378666420,1754950265559,-480.72,0.00020821,2]
[378666421,1754950265569,-460.0,0.00020821,2]
[378666422,1754950265578,-520.7356311,0.00020821,2]
[378666423,1754950265588,-460.0,0.00020821,2]
[378666424,1754950265598,-2434.57,0.00020821,2]
[378666425,1754950265607,-460.0,0.00020821,2]
[378666426,1754950265617,-460.0,0.00020821,2]
[378666427,1754950265627,-460.0,0.00020821,2]
[378666428,1754950265640,-460.0,0.00020821,2]
[378666429,1754950265650,-460.0,0.00020821,2]
[378666430,1754950265659,-1160.16,0.00020821,2]
[378666431,1754950265669,-460.0,0.00020821,2]
[378666432,1754950265678,-877.59,0.00020821,2]
[378666433,1754950265689,-459.64259846,0.00020821,2]
[378666434,1754950265716,-460.0,0.00019178,2]
[378666435,1754950265726,-0.35740154,0.00020821,2]
[378666436,1754950265735,-460.0,0.00020821,2]
[378666437,1754950265744,-524.33,0.00020821,2]
[378666438,1754950265754,-460.0,0.00020821,2]
[378666439,1754950265763,-679.67,0.00020821,2]
[378666440,1754950265773,-572.35960408,0.00020821,2]
[378666441,1754950265782,-460.0,0.00020821,2]
[378666442,1754950265792,-460.0,0.00020821,2]
[378666443,1754950265803,-594.28,0.00020821,2]
[378666444,1754950265813,-2334.64,0.00020821,2]
[378666445,1754950265822,-460.0,0.00020821,2]
[378666446,1754950265832,-746.73,0.00020821,2]
[378666447,1754950265842,-460.0,0.00020821,2]
[378666448,1754950265851,-460.0,0.00020821,2]
[378666449,1754950265861,-495.34780158,0.00020821,2]
[378666450,1754950265871,-460.0,0.00020821,2]
[378666451,1754950265882,-460.0,0.00020821,2]
[378666452,1754950265892,-468.8,0.00020821,2]
[378666453,1754950265901,-185.67588666,0.00020821,2]
[378666454,1754950265911,-460.0,0.00020821,2]
[378666455,1754950265920,-460.0,0.00020821,2]
[378666456,1754950265930,-551.71,0.00020821,2]
[378666457,1754950265939,-469.63,0.00020821,2]
[378666458,1754950265948,-460.0,0.00020821,2]
[378666459,1754950265958,-897.91,0.00020821,2]
[378666460,1754950265967,-474.97930614,0.00020821,2]
[378666461,1754950266126,-2822.02,0.00019178,2]
[378666462,1754950266136,-460.0,0.00019178,2]
[378666463,1754950266146,-460.0,0.00019178,2]
[378666464,1754950266155,-460.0,0.00019178,2]
[378666465,1754950266165,-460.0,0.00019452,2]
[378666466,1754950266174,-2822.02,0.00019452,2]
[378666467,1754950266184,-460.0,0.00019726,2]
[378666468,1754950266194,-460.0,0.0002,2]